[Event "BL 2024-25"]
[Site "Austria"]
[Date "2024.10.11"]
[Round "3.16"]
[White "Korpa, Bence"]
[Black "Antoniewski, Rafal"]
[Result "1/2-1/2"]
[Annotator "TA"]
[ECO "A05"]
[WhiteElo "2550"]
[BlackElo "2443"]
[PlyCount "77"]
[EventDate "2024.08.28"]
[EventType "team-tourn"]
[EventCountry "AUT"]
[SourceTitle "playchess.com"]
[Source "ChessBase"]
[SourceQuality "1"]
[WhiteTeam "Fuerstenfeld-Hartberg"]
[BlackTeam "Wien-St Veit"]
[TimeControl "40/5400+30:1800+30"]

{[%evp 9,77,8,14,0,16,0,6,11,27,21,29,0,24,19,26,16,10,16,16,30,60,51,78,68,95,87,97,100,89,90,124,137,146,143,124,120,144,129,126,70,71,70,71,22,14,0,0,7,0,22,0,0,0,0,0,0,0,0,0,0,0,0,0,-32,-30,-24,0,0,0,0]} 1. Nf3 {[%emt 0:00:05]} Nf6 {[%emt 0:00:45]} 2. e3 {[%emt 0:00:22]} g6 {[%emt 0:04:21]} 3. b4 {[%emt 0:01:02]} Bg7 {[%emt 0:00:53]} 4. Bb2 {[%emt 0:00:07]} b6 {[%emt 0:01:39]} 5. Be2 {[%emt 0:02:16]} Bb7 {[%emt 0:00:09]} 6. O-O {[%emt 0:00:12]} O-O {[%emt 0:02:29]} 7. c4 {[%emt 0:02:38]} c5 {[%emt 0:02:09]} 8. a3 {[%emt 0:03:28]} Qc7 {[%emt 0:09:03]} 9. d4 {[%emt 0:06:15]} d6 {[%emt 0:01:01]} 10. bxc5 {[%emt 0:11:45]} bxc5 {[%emt 0:00:56]} 11. d5 {[%emt 0:00:37]} e6 {[%emt 0:08:04]} 12. Nc3 {[%emt 0:02:12] Black must now prevent dxe6.} (12. dxe6 {with more complications.} fxe6 13. Ng5 Qe7 14. Nd2) 12... exd5 {[%emt 0:03:33]} 13. cxd5 {[%emt 0:00:09]} ({Reject} 13. Nxd5 Nxd5 14. Bxg7 Nxe3 $17) 13... Nbd7 {[%emt 0:00:59][%cal Bb8d7,Bd7b6,Bb6c8,Bc8e7][%mdl 32]} 14. Rb1 {[%emt 0:04:14]} a6 {[%emt 0:01:47]} 15. e4 {[%emt 0:01:35]} Nb6 {[%emt 0:16:17]} 16. Ba1 {[%emt 0:08:25]} Nfd7 {[%emt 0:01:11]} 17. a4 {[%emt 0:02:21][%cal Ba3a4,Ba4a5][%mdl 32]} Rab8 {[%emt 0:00:11]} 18. a5 {[%emt 0:02:55]} Nc8 {[%emt 0:00:08]} 19. Qa4 {[%emt 0:00:19]} Ne7 {[%emt 0:00:23]} 20. Bc4 {[%emt 0:07:04] White is more active.} Bc8 {[%emt 0:12:16][%cal Bb7c8,Bc8d7,Bd7b5][%mdl 32]} 21. Rxb8 {[%emt 0:13:47]} Nxb8 {[%emt 0:00:12]} 22. Ne2 {[%emt 0:00:59]} Bd7 {[%emt 0:03:34] [#]} 23. Qa2 {[%emt 0:02:49]} Bxa1 {[%emt 0:01:00]} 24. Qxa1 {[%emt 0:01:43]} (24. Rxa1 $16 Bb5 25. Bxb5 axb5 26. a6) 24... Bb5 $1 $14 {[%emt 0:00:28] [#]} 25. Nd2 {[%emt 0:08:19]} Nd7 {[%emt 0:02:16]} 26. Rb1 {[%emt 0:02:19]} ({White should try} 26. f4 $16) 26... Rb8 $11 {[%emt 0:02:30]} 27. Nc3 {[%emt 0:01:25]} Bxc4 {[%emt 0:00:59]} 28. Rxb8+ {[%emt 0:00:32]} Qxb8 {[%emt 0:02:43]} 29. Nxc4 {[%emt 0:00:07]} Qb4 $1 {[%emt 0:12:05]} 30. Nxd6 {[%emt 0:03:53]} c4 {[%emt 0:00:03]} 31. Ne8 {[%emt 0:00:38]} Qb8 $1 {[%emt 0:00:15]} 32. d6 $1 {[%emt 0:00:14]} Qxe8 {[%emt 0:00:16]} 33. dxe7 {[%emt 0:00:07]} Qxe7 {[%emt 0:00:07][%mdl 4096] Endgame. KQN-KQN} 34. Qa4 {[%emt 0:03:50]} Qe5 {[%emt 0:04:10]} 35. Qxc4 {[%emt 0:01:47]} Qxa5 {[%emt 0:00:05] Hoping for ...Qa1+.} 36. h3 {[%emt 0:02:24]} Qc5 {[%emt 0:03:59]} 37. Qd3 {[%emt 0:02:14]} Nf6 {[%emt 0:01:20]} (37... a5 $5) 38. Nd5 {[%emt 0:01:19]} Nxd5 {[%emt 0:00:27]} 39. exd5 {[%emt 0:00:08] White really could win this.   Weighted Error Value: White=0.08 (flawless) /Black=0.08 (flawless) .  Mistake:       	White=2     	---        Inaccurate:     	White=2     	Black=4      OK:         	White=14    	Black=11     Best:        	White=2     	Black=2      Strong:       	White=1     	Black=3} 1/2-1/2

[Event "BL 2024-25"]
[Site "Austria"]
[Date "2024.10.11"]
[Round "3.17"]
[White "Kuegel, Tobias"]
[Black "Gschnitzer, Adrian"]
[Result "1/2-1/2"]
[Annotator "TA"]
[ECO "B53"]
[WhiteElo "2428"]
[BlackElo "2449"]
[PlyCount "52"]
[EventDate "2024.08.28"]
[EventType "team-tourn"]
[EventCountry "AUT"]
[SourceTitle "playchess.com"]
[Source "ChessBase"]
[SourceQuality "1"]
[WhiteTeam "Wien-St Veit"]
[BlackTeam "Fuerstenfeld-Hartberg"]
[TimeControl "40/5400+30:1800+30"]

{[%evp 20,52,0,0,0,0,0,0,0,0,0,0,0,0,0,0,0,0,0,0,0,0,0,0,0,0,0,0,0,0,0,0,0,0,0]} 1. e4 {[%emt 0:00:02]} c5 {[%emt 0:00:08]} 2. Nf3 {[%emt 0:00:11]} d6 {[%emt 0:00:09]} 3. d4 {[%emt 0:00:12]} cxd4 {[%emt 0:00:07]} 4. Qxd4 {[%emt 0:00:15]} Nc6 {[%emt 0:00:31]} 5. Bb5 {[%emt 0:00:22]} Bd7 {[%emt 0:00:13]} 6. Bxc6 {[%emt 0:00:13]} Bxc6 {[%emt 0:00:08]} 7. Nc3 {[%emt 0:00:09]} Nf6 {[%emt 0:00:33]} 8. Bg5 {[%emt 0:00:12]} e6 {[%emt 0:00:19]} 9. O-O-O {[%emt 0:00:10][%cal Ba1d1,Bd1d4,Bd4d3][%mdl 32]} Be7 {[%emt 0:00:18]} 10. Rhe1 {[%emt 0:00:29]} O-O {[%emt 0:00:40]} 11. e5 {[%emt 0:00:36] The position is equal.} dxe5 {[%emt 0:00:18]} 12. Nxe5 {[%emt 0:00:09]} Qxd4 {[%emt 0:00:22]} 13. Rxd4 {[%emt 0:03:28]} Rfc8 {[%emt 0:00:22][%cal Bf8c8,Bc8c6,Bc6e6][%mdl 32]} 14. Nxc6 {[%emt 0:00:55]} Rxc6 {[%emt 0:00:10]} 15. Ne4 {[%emt 0:00:47]} e5 {[%emt 0:00:33]} 16. Rd3 {[%emt 0:01:26]} Nxe4 {[%emt 0:00:24]} 17. Bxe7 {[%emt 0:00:10]} Nxf2 {[%emt 0:00:28]} 18. Rd2 {[%emt 0:00:30]} Re6 {[%emt 0:00:34]} 19. Bd6 {[%emt 0:02:47][%cal Oh2h3]} Rd8 {[%emt 0:00:38]} 20. Bxe5 {[%emt 0:00:53]} Rxd2 {[%emt 0:00:38]} 21. Kxd2 $11 {[%emt 0:04:51][%mdl 4096] Endgame. KRB-KRN} f6 {[%emt 0:00:11]} 22. Bd4 {[%emt 0:05:00]} Ne4+ $1 {[%emt 0:00:12]} 23. Kd3 {[%emt 0:01:13]} Nc5+ {[%emt 0:00:11]} 24. Kd2 $1 {[%emt 0:00:13]} Ne4+ {[%emt 0:00:07]} 25. Kd3 {[%emt 0:00:17]} Nc5+ {[%emt 0:00:13]} 26. Kd2 $1 {[%emt 0:00:17]} Ne4+ {[%emt 0:00:30] A rather calm draw.   Weighted Error Value: White=0.00 (flawless) /Black=0.00 (flawless) .  OK:         	White=8     	Black=9      Best:        	---       	Black=1      Strong:       	White=2     	Black=1} 1/2-1/2

[Event "BL 2024-25"]
[Site "Austria"]
[Date "2024.10.11"]
[Round "3.18"]
[White "Schernthaner, David"]
[Black "Schachinger, Mario"]
[Result "1/2-1/2"]
[Annotator "TA"]
[ECO "C95"]
[WhiteElo "2389"]
[BlackElo "2385"]
[PlyCount "62"]
[EventDate "2024.08.28"]
[EventType "team-tourn"]
[EventCountry "AUT"]
[SourceTitle "playchess.com"]
[Source "ChessBase"]
[SourceQuality "1"]
[WhiteTeam "Fuerstenfeld-Hartberg"]
[BlackTeam "Wien-St Veit"]
[TimeControl "40/5400+30:1800+30"]

{[%evp 30,62,20,10,41,7,8,-12,9,0,9,13,12,12,9,8,12,11,7,8,8,4,3,3,3,0,0,0,0,0,0,0,0,0,0]} 1. e4 {[%emt 0:00:02]} e5 {[%emt 0:00:37]} 2. Nf3 {[%emt 0:00:06]} Nc6 {[%emt 0:00:06]} 3. Bb5 {[%emt 0:00:05][%cal Bf1b5,Bb5a4,Ba4b3,Bb3c2,Bc2d3][%mdl 32]} a6 {[%emt 0:00:17]} 4. Ba4 {[%emt 0:00:05]} Nf6 {[%emt 0:00:33]} 5. O-O {[%emt 0:00:11]} Be7 {[%emt 0:00:49]} 6. Re1 {[%emt 0:00:22]} b5 {[%emt 0:00:14]} 7. Bb3 {[%emt 0:00:04]} d6 {[%emt 0:00:18]} 8. c3 {[%emt 0:00:26]} O-O {[%emt 0:00:20]} 9. h3 {[%emt 0:00:04]} Nb8 {[%emt 0:01:12]} 10. d4 {[%emt 0:00:56]} Nbd7 {[%emt 0:00:13]} 11. Nbd2 {[%emt 0:00:17]} Bb7 {[%emt 0:00:24]} 12. Bc2 {[%emt 0:00:16]} Re8 {[%emt 0:00:40]} 13. Nf1 {[%emt 0:00:10]} Bf8 {[%emt 0:00:16]} 14. Ng3 {[%emt 0:00:12]} g6 {[%emt 0:00:32]} 15. a4 {[%emt 0:02:25]} Bg7 {[%emt 0:02:38]} 16. Bd3 {[%emt 0:24:35]} c6 {[%emt 0:00:45]} 17. b3 {[%emt 0:08:18]} Qc7 {[%emt 0:17:21] Die Stellung ist ausgeglichen.} 18. Bb2 {[%emt 0:03:27]} Rad8 {[%emt 0:10:46]} 19. Qc2 $1 {[%emt 0:05:25]} d5 {[%emt 0:11:57]} 20. dxe5 {[%emt 0:02:33]} Nxe4 {[%emt 0:04:52]} (20... dxe4 {mit weiteren Verwicklungen.} 21. Nxe4 Nxe4 22. Bxe4 Nxe5 23. c4 Nxf3+ 24. Bxf3 Bxb2 25. Qxb2 c5) 21. Nxe4 {[%emt 0:02:10]} dxe4 {[%emt 0:00:03]} 22. Bxe4 {[%emt 0:00:06]} Nxe5 {[%emt 0:00:21]} 23. c4 {[%emt 0:08:21]} Nxf3+ {[%emt 0:07:07]} 24. Bxf3 {[%emt 0:00:20] [#] Und Bxg7 würde nun gewinnen.} Bxb2 {[%emt 0:00:09]} 25. Qxb2 {[%emt 0:00:30]} c5 {[%emt 0:00:33]} 26. Bxb7 {[%emt 0:01:09]} Qxb7 {[%emt 0:00:07]} 27. axb5 {[%emt 0:04:45]} axb5 {[%emt 0:00:31]} 28. cxb5 {[%emt 0:08:09]} Qxb5 {[%emt 0:01:10]} 29. Rxe8+ {[%emt 0:02:13]} Rxe8 $11 {[%emt 0:00:52] KQR-KQR} 30. Rc1 {[%emt 0:01:42]} Qb4 {[%emt 0:02:19]} 31. Qc3 {[%emt 0:05:51]} Qxc3 {[%emt 0:00:50] Ein interessantes Remis.   Gewichteter Fehlerwert: Weiß=0.05 (makellos) /Schwarz=0.04 (makellos) .  Ungenau:       	Weiß=1     	---        OK:         	Weiß=5     	Schwarz=4     Stark:        	Weiß=1     	---} 1/2-1/2

[Event "BL 2024-25"]
[Site "Austria"]
[Date "2024.10.11"]
[Round "3.19"]
[White "Gschiel, Alexander"]
[Black "Ragger, Markus"]
[Result "0-1"]
[Annotator "TA"]
[ECO "E01"]
[WhiteElo "2326"]
[BlackElo "2584"]
[PlyCount "84"]
[EventDate "2024.08.28"]
[EventType "team-tourn"]
[EventCountry "AUT"]
[SourceTitle "playchess.com"]
[Source "ChessBase"]
[SourceQuality "1"]
[WhiteTeam "Pamhagen"]
[BlackTeam "Maria Saal"]
[TimeControl "40/5400+30:1800+30"]

{[%evp 9,84,23,29,0,-5,0,-4,-4,17,18,17,18,8,-22,-20,-4,-22,-28,-29,-72,-86,-84,-89,-82,-79,-150,-139,-243,-265,-373,-275,-347,-213,-347,-325,-327,-325,-278,-268,-331,-325,-303,-285,-410,-385,-508,-524,-847,-816,-1118,-1143,-1711,-1664,-1745,-1687,-2289,-2162,-2230,-2200,-2332,-2198,-2041,-1340,-2044,-1900,-29989,-29990,-29990,-29991,-29991,-29992,-29992,-29993,-29993,-29993,-29993,-29994]} 1. d4 {[%emt 0:00:06]} Nf6 {[%emt 0:00:02]} 2. Nf3 {[%emt 0:00:09]} d5 {[%emt 0:00:12]} 3. c4 {[%emt 0:00:22]} e6 {[%emt 0:00:01]} 4. g3 {[%emt 0:00:32]} Nc6 {[%emt 0:00:09]} 5. Bg2 {[%emt 0:00:19]} Rb8 {[%emt 0:00:08]} 6. Nc3 {[%emt 0:01:25]} dxc4 {[%emt 0:08:35]} 7. Qa4 {[%emt 0:05:05]} Bb4 {[%emt 0:05:47]} 8. O-O {[%emt 0:26:25] The position is equal.} Bxc3 {[%emt 0:12:29]} 9. bxc3 {[%emt 0:00:12][%cal Oa1b1]} b5 {[%emt 0:00:02]} 10. Qc2 {[%emt 0:00:54][%mdl 1024] White has compensation.} O-O {[%emt 0:03:37]} 11. Ng5 {[%emt 0:06:42]} Bb7 {[%emt 0:05:53]} 12. e4 {[%emt 0:00:44]} h6 {[%emt 0:00:58]} 13. Nh3 {[%emt 0:12:33]} Qd7 {[%emt 0:12:42]} 14. Ba3 {[%emt 0:11:00]} Rfd8 {[%emt 0:01:56][%cal Ob5b4] Black converts the advantage convincingly.} 15. Rad1 {[%emt 0:02:07]} Qe8 {[%emt 0:04:17]} 16. Rfe1 {[%emt 0:04:53]} a5 {[%emt 0:01:18]} 17. e5 {[%emt 0:02:40]} (17. Bb2 $142) 17... Nd5 {[%emt 0:00:31]} 18. Bc1 {[%emt 0:04:39]} (18. Bxd5 $17 {was worth a try.} Rxd5 19. Nf4) 18... Nce7 $19 {[%emt 0:01:59]} 19. Re4 {[%emt 0:00:59]} (19. a3 $142) 19... Ng6 {[%emt 0:03:12] ...b4 would now be deadly.} 20. Rg4 {[%emt 0:01:01]} Nde7 {[%emt 0:01:44]} 21. f3 {[%emt 0:02:50]} (21. Bxb7 $142 Rxb7 22. Nf4) 21... b4 {[%emt 0:01:49]} 22. Nf2 {[%emt 0:02:02] [#]} b3 {[%emt 0:02:21][%mdl 512]} 23. Qe2 {[%emt 0:00:44]} Bd5 {[%emt 0:03:29]} 24. h4 {[%emt 0:05:17]} h5 {[%emt 0:08:07]} 25. Rg5 {[%emt 0:00:05]} Qb5 {[%emt 0:00:09]} 26. a4 {[%emt 0:04:16]} (26. axb3 $142 cxb3 27. Qb2) 26... Qxa4 {[%emt 0:00:16]} 27. Rxh5 {[%emt 0:01:13]} Qa2 {[%emt 0:01:03]} 28. Bb2 {[%emt 0:00:34] Hoping for Ra1.} a4 {[%emt 0:02:55] ...a3 is the strong threat.} 29. Ra1 {[%emt 0:00:15]} a3 {[%emt 0:00:07]} 30. Rxa2 {[%emt 0:00:41]} bxa2 {[%emt 0:00:01]} 31. Ba1 {[%emt 0:00:13]} Rb1+ {[%emt 0:00:01]} 32. Nd1 {[%emt 0:01:23]} Rxa1 {[%emt 0:00:02]} 33. Kh2 {[%emt 0:00:07]} Rb8 {[%emt 0:01:53][%cal Oa1d1] Threatens to win with ...Rxd1!} 34. Rg5 {[%emt 0:00:29] [#]} Rb2 $1 {[%emt 0:03:56][%mdl 512]} 35. Nxb2 {[%emt 0:00:09]} Rc1 {[%emt 0:00:10]} 36. h5 {[%emt 0:01:40]} a1=Q {[%emt 0:00:16]} (36... a1=B $2 {too greedy.} 37. Nxc4 Nf8 38. Nxa3 Bxc3 39. Qe3 $18) 37. hxg6 {[%emt 0:00:14]} axb2 {[%emt 0:01:29] Black mates.} 38. gxf7+ {[%emt 0:00:09]} Kxf7 {[%emt 0:00:02]} 39. Qe3 {[%emt 0:02:03]} b1=Q {[%emt 0:00:24]} 40. Rxg7+ {[%emt 0:00:04]} Kxg7 {[%emt 0:00:37]} 41. Qg5+ {[%emt 0:30:06]} Kf7 {[%emt 0:30:20]} 42. Qf6+ {[%emt 0:00:09]} Ke8 {[%emt 0:00:02] Weighted Error Value: White=1.14/Black=0.25 (precise) .  Mistake:       	White=5     	---        Inaccurate:     	White=5     	Black=1      OK:         	White=5     	Black=10     Best:        	White=1     	Black=5} 0-1

[Event "BL 2024-25"]
[Site "Austria"]
[Date "2024.10.11"]
[Round "3.20"]
[White "Costa, Leonardo"]
[Black "Lovrinovic, Christian"]
[Result "1-0"]
[Annotator "TA"]
[ECO "B76"]
[WhiteElo "2472"]
[BlackElo "2053"]
[PlyCount "59"]
[EventDate "2024.08.28"]
[EventType "team-tourn"]
[EventCountry "AUT"]
[SourceTitle "playchess.com"]
[Source "ChessBase"]
[SourceQuality "1"]
[WhiteTeam "Maria Saal"]
[BlackTeam "Pamhagen"]
[TimeControl "40/5400+30:1800+30"]

{[%evp 29,59,37,41,34,37,33,43,45,57,54,54,43,61,50,50,55,54,50,53,56,80,59,98,108,158,174,191,175,307,266,468,456]} 1. e4 {[%emt 0:00:02]} c5 {[%emt 0:00:04]} 2. Nf3 {[%emt 0:00:03]} d6 {[%emt 0:00:05]} 3. d4 {[%emt 0:00:04]} cxd4 {[%emt 0:00:05]} 4. Nxd4 {[%emt 0:00:03]} Nf6 {[%emt 0:00:04]} 5. Nc3 {[%emt 0:00:03]} g6 {[%emt 0:00:05]} 6. Be3 {[%emt 0:00:09]} Bg7 {[%emt 0:00:09]} 7. f3 {[%emt 0:00:04]} O-O {[%emt 0:00:10]} 8. Qd2 {[%emt 0:00:03]} Nc6 {[%emt 0:00:04]} 9. O-O-O {[%emt 0:00:31]} d5 {[%emt 0:00:07]} 10. exd5 {[%emt 0:00:11]} Nxd5 {[%emt 0:00:05]} 11. Nxc6 {[%emt 0:00:02]} bxc6 {[%emt 0:00:06]} 12. Bd4 {[%emt 0:00:12]} Nxc3 {[%emt 0:23:08]} 13. Qxc3 {[%emt 0:00:29]} Bh6+ {[%emt 0:00:04]} 14. Be3 {[%emt 0:00:04]} Bxe3+ {[%emt 0:00:04]} 15. Qxe3 {[%emt 0:00:03]} Qb6 $1 {[%emt 0:00:04]} 16. Re1 {[%emt 0:00:04]} Be6 {[%emt 0:07:46]} 17. h4 {[%emt 0:01:16][%cal Bh2h4,Bh4h5,Bh5h6][%mdl 32]} Rab8 {[%emt 0:01:33][%cal Ba8b8,Bb8b4,Bb4d4][%mdl 32]} (17... Bxa2 18. b3 Qa5 19. Qe5 Qxe5 20. Rxe5 $18) 18. b3 {[%emt 0:03:20] White is slightly better.} Qxe3+ {[%emt 0:15:57]} 19. Rxe3 {[%emt 0:00:04]} Rfd8 {[%emt 0:00:03]} 20. h5 {[%emt 0:09:45]} Rb4 {[%emt 0:21:34]} 21. h6 {[%emt 0:11:18]} (21. hxg6 $5 hxg6 22. Rc3 $14) 21... Rbd4 {[%emt 0:00:22]} 22. Be2 {[%emt 0:00:13] Prevents Rd1+.} R8d6 {[%emt 0:06:21]} 23. g3 {[%emt 0:07:12]} Kf8 {[%emt 0:01:37]} 24. Re1 {[%emt 0:12:37]} Bc8 {[%emt 0:09:31]} 25. f4 {[%emt 0:12:12]} Re6 {[%emt 0:02:48]} 26. Bf3 {[%emt 0:01:19]} Rxe3 {[%emt 0:02:44]} (26... Rdd6 $142 27. R1e2 f6) 27. Rxe3 $16 {[%emt 0:00:04]} Rd6 {[%emt 0:03:32]} 28. b4 {[%emt 0:03:48]} Rd4 {[%emt 0:02:29]} (28... a6 $142 29. Ra3 Bb7) 29. Bxc6 $18 {[%emt 0:03:53]} Rxb4 $2 {[%emt 0:00:15] [#]} (29... f6 30. b5 g5 31. fxg5 fxg5) 30. Rd3 {[%emt 0:00:06] Weighted Error Value: White=0.03 (flawless) /Black=0.34.  Mistake:       	---       	Black=3      Inaccurate:     	---       	Black=1      OK:         	White=7     	Black=2      Best:        	White=1     	---} 1-0

[Event "BL 2024-25"]
[Site "Austria"]
[Date "2024.10.11"]
[Round "3.22"]
[White "Halvax, Georg"]
[Black "Horvath, Maria"]
[Result "1-0"]
[Annotator "TA"]
[ECO "D30"]
[WhiteElo "2443"]
[BlackElo "1893"]
[PlyCount "73"]
[EventDate "2024.08.28"]
[EventType "team-tourn"]
[EventCountry "AUT"]
[SourceTitle "playchess.com"]
[Source "ChessBase"]
[SourceQuality "1"]
[WhiteTeam "Maria Saal"]
[BlackTeam "Pamhagen"]
[TimeControl "40/5400+30:1800+30"]

{[%evp 9,73,0,0,0,0,-7,0,0,0,-4,-10,-2,10,0,8,0,0,10,7,-29,-9,-10,-8,-13,0,-9,0,0,43,50,46,33,52,41,41,34,110,111,114,107,112,105,197,204,247,243,246,211,201,206,206,209,209,208,202,206,272,276,791,791,757,790,816,797,1135,1126]} 1. d4 {[%emt 0:00:06]} d5 {[%emt 0:00:05]} 2. c4 {[%emt 0:00:11]} e6 {[%emt 0:00:04]} 3. Nf3 {[%emt 0:00:11]} Nf6 {[%emt 0:00:18]} 4. e3 {[%emt 0:00:43]} Be7 {[%emt 0:00:21]} 5. a3 {[%emt 0:00:10]} O-O {[%emt 0:00:30]} 6. Nbd2 {[%emt 0:00:21]} b6 {[%emt 0:01:09]} 7. Bd3 {[%emt 0:00:56]} Bb7 {[%emt 0:00:13]} 8. O-O {[%emt 0:00:18] The position is equal.} Nbd7 {[%emt 0:01:09]} 9. b4 {[%emt 0:01:20]} c5 {[%emt 0:02:45]} 10. cxd5 {[%emt 0:02:10]} exd5 {[%emt 0:02:43]} 11. bxc5 {[%emt 0:01:41]} bxc5 {[%emt 0:00:05]} 12. dxc5 {[%emt 0:00:07]} Nxc5 {[%emt 0:00:55]} 13. Be2 {[%emt 0:00:34]} Bc6 {[%emt 0:12:17]} 14. Nd4 {[%emt 0:02:52]} Ba4 {[%emt 0:00:09]} 15. Qe1 {[%emt 0:00:10]} Qd7 {[%emt 0:04:54]} 16. N2f3 {[%emt 0:04:03]} Bd6 {[%emt 0:00:13]} 17. Bd2 {[%emt 0:03:16]} Rab8 {[%emt 0:05:23][%cal Ba8b8,Bb8b7,Bb7b4][%mdl 32]} 18. Bb4 {[%emt 0:02:46]} Nce4 {[%emt 0:05:29]} 19. Bxd6 {[%emt 0:01:58]} Qxd6 {[%emt 0:10:25]} 20. Qa5 {[%emt 0:00:18][%csl LRa4,LRa7]} Bd7 {[%emt 0:01:06]} 21. h3 {[%emt 0:05:24][%cal Of1c1]} (21. Qxa7 $2 {perishes.} Ra8 22. Qb7 Rfb8 $19 (22... Rxa3 23. Rxa3 Qxa3 24. h3 $14) (22... Rxa3 23. Qb2 $14)) 21... Rb7 {[%emt 0:09:24]} 22. a4 {[%emt 0:09:24][%cal Ba3a4,Ba4a5][%mdl 32]} Qb4 {[%emt 0:09:44] Black is now going downhill.} (22... g6 $14) 23. Qxb4 $16 {[%emt 0:02:37]} Rxb4 {[%emt 0:00:06]} 24. a5 {[%emt 0:01:03]} Nc3 {[%emt 0:04:29]} 25. Bd3 {[%emt 0:01:06]} Nfe4 {[%emt 0:02:22]} (25... Rc8 $16 {is a better defense.}) 26. Ne5 $18 {[%emt 0:07:28][%cal Bf3e5,Be5c6,Bc6a7][%mdl 32]} Bb5 {[%emt 0:05:01]} 27. Bxb5 {[%emt 0:02:51]} Nxb5 {[%emt 0:00:10]} 28. Nec6 {[%emt 0:03:24]} Rb2 {[%emt 0:00:45]} 29. Nxb5 {[%emt 0:00:12]} Rxb5 {[%emt 0:00:14]} 30. Nxa7 {[%emt 0:00:06]} Rc5 {[%emt 0:01:21]} 31. Rfb1 {[%emt 0:01:58] Strongly threatening Rb6.} Nd6 {[%emt 0:03:38] [#]} 32. a6 $1 {[%emt 0:04:49]} g6 {[%emt 0:06:16]} 33. Rb6 {[%emt 0:00:49]} Nc4 {[%emt 0:03:04]} (33... Ra8 34. Nc6 Nc8) 34. Rc6 {[%emt 0:01:13] White is clearly winning.} Ra5 {[%emt 0:01:24]} 35. Rxa5 {[%emt 0:00:14]} Nxa5 {[%emt 0:00:03]} 36. Rc5 {[%emt 0:00:12]} Ra8 {[%emt 0:10:16]} 37. Rc8+ {[%emt 0:00:10] Weighted Error Value: White=0.04 (flawless) /Black=0.21 (precise) .  Mistake:       	---       	Black=3      Inaccurate:     	White=1     	Black=2      OK:         	White=16    	Black=8      Best:        	White=2     	---        Strong:       	White=1     	---} (37. Rxa5 Rxa7 38. Kf1 (38. Rxd5 Rxa6 39. g3 Kf8 $14) 38... Kf8 $18) (37. Rxd5 Nb3 $16) 1-0

[Event "BL 2024-25"]
[Site "Austria"]
[Date "2024.10.11"]
[Round "3.24"]
[White "Hartl, Daniel"]
[Black "Rusek, Walter"]
[Result "1-0"]
[Annotator "RC"]
[ECO "D30"]
[WhiteElo "2248"]
[BlackElo "1838"]
[PlyCount "57"]
[EventDate "2024.08.28"]
[EventType "team-tourn"]
[EventCountry "AUT"]
[SourceTitle "playchess.com"]
[Source "ChessBase"]
[SourceQuality "1"]
[WhiteTeam "Maria Saal"]
[BlackTeam "Pamhagen"]
[TimeControl "40/5400+30:1800+30"]

1. d4 {[%emt 0:00:03]} d5 {[%emt 0:00:05]} 2. c4 {[%emt 0:00:05]} c6 {[%emt 0:00:02]} 3. Nf3 {[%emt 0:00:04]} Nf6 {[%emt 0:00:05]} 4. e3 {[%emt 0:00:05]} e6 {[%emt 0:00:03]} 5. b3 {[%emt 0:00:10]} Nbd7 {[%emt 0:00:30]} 6. Bb2 {[%emt 0:01:09]} b6 {[%emt 0:00:19]} 7. Bd3 {[%emt 0:00:07]} Bb7 {[%emt 0:00:06]} 8. O-O {[%emt 0:00:24]} Bd6 {[%emt 0:00:07]} 9. Ne5 {[%emt 0:03:33]} O-O {[%emt 0:02:26]} 10. Nd2 {[%emt 0:02:09]} Rc8 {[%emt 0:00:56]} 11. e4 {[%emt 0:04:28]} dxe4 {[%emt 0:00:38]} 12. Nxe4 {[%emt 0:00:07]} Nxe4 {[%emt 0:01:13]} 13. Bxe4 {[%emt 0:00:06]} Bxe5 {[%emt 0:07:23]} 14. dxe5 {[%emt 0:00:07]} Nc5 {[%emt 0:00:12]} 15. Bc2 {[%emt 0:01:52]} Qxd1 {[%emt 0:00:18]} 16. Rfxd1 {[%emt 0:01:33]} Rfd8 {[%emt 0:10:48]} 17. Ba3 {[%emt 0:07:02]} h6 {[%emt 0:09:58]} 18. f4 {[%emt 0:02:44]} Kf8 {[%emt 0:06:48]} 19. b4 {[%emt 0:17:24]} Na6 {[%emt 0:01:04]} 20. Be4 {[%emt 0:00:53]} Ke8 {[%emt 0:01:26]} 21. Rd6 {[%emt 0:00:35]} Ba8 {[%emt 0:04:05]} 22. c5 {[%emt 0:02:15]} b5 {[%emt 0:05:21]} 23. f5 {[%emt 0:06:50]} Ke7 {[%emt 0:04:09]} 24. Rf1 {[%emt 0:05:23]} Nb8 {[%emt 0:08:09]} 25. Bb2 {[%emt 0:11:48]} a5 {[%emt 0:04:06]} 26. bxa5 {[%emt 0:02:26]} Na6 {[%emt 0:33:13]} 27. Bd4 {[%emt 0:02:31]} Rd7 {[%emt 0:00:00]} 28. fxe6 {[%emt 0:02:49]} fxe6 {[%emt 0:00:00]} 29. Bg6 {[%emt 0:00:22]} 1-0